Workbook

Sheet READ ME
D4: Language: | E4: English
A8: =Translation!B6 -> Design Tool: Solar Water Chiller for Cold Rooms
C18: =Translation!B7 -> Read Me Sheet
C20: =Translation!B8 -> Introduction
C22: =Translation!B9 -> This tool calculates the required power of a do-it-yourself water chiller for cold rooms to cool different products from a given to a desired temperature and gives an economic analysis. Examplary data is filled and and can be modified by own data.
C28: =Translation!B10 -> Tips & Tricks
C30: =Translation!B11 -> ● Enter values into white (non-coloured) cells only! ● None entry cells (coloured cells) are protected. Unprotect first if changes are necessary
C37: =Translation!B12 -> Overview of the following sheets
C39: =Translation!B13 -> 1. Geographic Data | F39: =Translation!B20 -> For selecting basic site information: ambient temperatures or solar radiation.
C41: =Translation!B14 -> 2. Input | F41: =Translation!B21 -> For adding data about the product to be cooled under given conditions
C43: =Translation!B15 -> 3. Cooling Curve | F43: =Translation!B22 -> Visualization of the Cooling Curve and Cooling Load profile
C45: =Translation!B16 -> 4. Output | F45: =Translation!B23 -> For an overview of the results
C47: =Translation!B17 -> 5. Weather Data | F47: =Translation!B24 -> To add weather data for a specific location
C49: =Translation!B18 -> Calculation Sheet (Hidden) | F49: =Translation!B25 -> All calculations are done within this sheet
C51: =Translation!B19 -> Translation sheet (Hidden) | F51: =Translation!B26 -> Contains the translation into several languages
C54: =Translation!B27 -> Additional information
C56: =Translation!B28 -> This tool was created by the solar cooling group of the Institute of Agricultural Engineering ( Tropics/Subtropics Department) of the University of Hohenheim, Germany.
C61: =Translation!B29 -> In cooperation with

Sheet 1 Geographic Data
D3: =Translation!B30 -> 1. Geographic Data
A5: =Translation!B46 -> Choose location:
A6: Mali (Bamako)
B7: =Translation!B33 -> January | C7: =Translation!B34 -> February | D7: =Translation!B35 -> March | E7: =Translation!B36 -> April | F7: =Translation!B37 -> May | G7: =Translation!B38 -> June | H7: =Translation!B39 -> July | I7: =Translation!B40 -> August | J7: =Translation!B41 -> September | K7: =Translation!B42 -> October | L7: =Translation!B43 -> November | M7: =Translation!B44 -> December
A8: =Translation!B31 -> Mean daily temperature [°C]: | B8: ='5 Weather Data'!C6 -> 25.1 | C8: ='5 Weather Data'!D6 -> 27.8 | D8: ='5 Weather Data'!E6 -> 30.3 | E8: ='5 Weather Data'!F6 -> 31.1 | F8: ='5 Weather Data'!G6 -> 31.5 | G8: ='5 Weather Data'!H6 -> 29 | H8: ='5 Weather Data'!I6 -> 27.4 | I8: ='5 Weather Data'!J6 -> 25.9 | J8: ='5 Weather Data'!K6 -> 26.4 | K8: ='5 Weather Data'!L6 -> 27.4 | L8: ='5 Weather Data'!M6 -> 26.5 | M8: ='5 Weather Data'!N6 -> 24.8
A9: =Translation!B32 -> Solar irradiation [kWh/m² day]: | B9: ='5 Weather Data'!C7 -> 5.4 | C9: ='5 Weather Data'!D7 -> 5.9 | D9: ='5 Weather Data'!E7 -> 6.9 | E9: ='5 Weather Data'!F7 -> 6.6 | F9: ='5 Weather Data'!G7 -> 6.4 | G9: ='5 Weather Data'!H7 -> 6.1 | H9: ='5 Weather Data'!I7 -> 5.8 | I9: ='5 Weather Data'!J7 -> 5.6 | J9: ='5 Weather Data'!K7 -> 5.8 | K9: ='5 Weather Data'!L7 -> 5.8 | L9: ='5 Weather Data'!M7 -> 5.7 | M9: ='5 Weather Data'!N7 -> 5.4
A11: =Translation!B47 -> Use to obtain indicative monthly irradiation and temperature data for the site: | H11: www.worldclimate.com | J11: www.sdwebx.worldbank.org/climateportal
A13: =Translation!B45 -> Locations can be added on the sheet "Weather Data"

Sheet 2 Input
B3: =Translation!B48 -> Input of parameters
B6: =Translation!B49 -> Product information | E6: =Translation!B50 -> Data
B8: =Translation!B51 -> Total mass to be cooled | E8: =Translation!B54 -> Mass = | F8: 500 | G8: kg/day
B9: =Translation!B52 -> Moisture content of the product | E9: =Translation!B55 -> MC = | F9: 86 | G9: =Translation!B58 -> % wet based
B10: =Translation!B53 -> or Heat capacity of the product | E10: =Translation!B56 -> cp = | F10: 0 | G10: =Translation!B59 -> kJ/kg K
B11: =Translation!B60 -> Radius | E11: r = | F11: 0.05 | G11: m
B12: =Translation!B61 -> Density | E12: δ = | F12: 997 | G12: kg/m³
B13: =Translation!B62 -> Convection air - product | E13: h = | F13: 5 | G13: W/m²K
B16: =Translation!B64 -> Temperature information
B18: =Translation!B65 -> Initial temperature of the product | E18: Ti = | F18: 30 | G18: °C
B19: =Translation!B66 -> Final temperature of the product | E19: Tm = | F19: 15 | G19: °C
B22: =Translation!B70 -> System information
B24: =Translation!B71 -> Batteries | F24: Yes
B25: =Translation!B72 -> Autonomy of the system | F25: 1 | G25: =IF(K24="YES","days","") -> 
B26: =Translation!B73 -> System losses | F26: 25 | G26: %
B29: =Translation!B88 -> Cold Room
F30: =F31*F32*F33 -> 90.75 | G30: m3
B31: =Translation!B89 -> Inner length of the cold room | E31: x = | F31: 5.5 | G31: m
B32: =Translation!B90 -> Inner width of the cold room | E32: y = | F32: 5.5 | G32: m
B33: =Translation!B91 -> Inner height of the cold room | E33: z = | F33: 3 | G33: m | H33: 1 | I33: =Translation!B74 -> PV Panels | K33: 7 | L33: =Translation!B80 -> Water bath
B34: =Translation!B93 -> Thermal conductivity of insulation | E34: k / l = | F34: 0.04 | G34: W/m K | H34: 2 | I34: =Translation!B75 -> Charge Controller | K34: 8 | L34: =Translation!B81 -> Ice on evaporator surface
B35: =Translation!B94 -> Thickness of insulation | E35: L = | F35: 0.2 | G35: m | H35: 3 | I35: =Translation!B76 -> Batteries | K35: 9 | L35: =Translation!B82 -> DC pump
B36: =Translation!B95 -> Ice storage inside the cold room? | F36: Yes | H36: 4 | I36: =Translation!B77 -> Control Unit | K36: 10 | L36: =Translation!B83 -> Fan coil unit
H37: 5 | I37: =Translation!B78 -> Compressor | K37: 11 | L37: =Translation!B84 -> Cold room
B38: =Translation!B96 -> Economic information | H38: 6 | I38: =Translation!B79 -> Ice storage | K38: 12 | L38: =Translation!B85 -> Cooled product
B40: =Translation!B97 -> Currency used for calculation | F40: €
B41: =Translation!B98 -> Specific cost of PV | F41: 1.1 | G41: =Translation!B112 -> €/Wp
B42: =Translation!B99 -> PV lifetime | F42: 21 | G42: =Translation!B106 -> years
B43: =Translation!B100 -> Specif cost of battery | F43: 2 | G43: =F40&"/Ah@12V" -> €/Ah@12V
B44: =Translation!B101 -> Battery lifetime | F44: 3 | G44: =Translation!B106 -> years
B45: =Translation!B102 -> Cost of solar cooling unit | F45: 650 | G45: =F40 -> €
B46: =Translation!B103 -> Solar cooling unit lifetime | F46: 12 | G46: =Translation!B106 -> years
B47: =Translation!B104 -> Material & construction costs for cooling box | F47: 2000 | G47: =F40 -> €
B48: =Translation!B105 -> Maintenance costs per year | F48: 25 | G48: =F40 -> €
B50: =Translation!B107 -> Additional income per product unit | F50: 0 | G50: =Translation!B111 -> €/kg or l
B51: =Translation!B108 -> Additional income per month | F51: 500 | G51: =Translation!B113 -> €/month
B52: =Translation!B109 -> Discount rate | F52: 5 | G52: %
B53: =Translation!B110 -> Inflation | F53: 3 | G53: %

Sheet 3 Cooling Curve
B3: =Translation!B122 -> Cooling Curve & Cooling Load

Sheet 4 Output
B3: =Translation!B124 -> Results
B6: =Translation!B125 -> System Design without batteries | H6: =Translation!B136 -> System Design with batteries
B8: =Translation!B126 -> Cooling units needed: | D8: ='Calculation Sheet'!P18 -> 24 | H8: =Translation!B126 -> Cooling units needed: | J8: ='Calculation Sheet'!P20 -> 8
B9: =Translation!B127 -> Cooling units costs: | D9: ='Calculation Sheet'!$U$75 -> 15600 | E9: ='Calculation Sheet'!$E$70 -> € | H9: =Translation!B127 -> Cooling units costs: | J9: ='Calculation Sheet'!P75 -> 5200 | K9: ='Calculation Sheet'!$E$70 -> €
B11: =Translation!B128 -> Solar PV size: | D11: ='Calculation Sheet'!$P$19 -> 4332 | E11: Wp | H11: =Translation!B128 -> Solar PV size: | J11: ='Calculation Sheet'!P21 -> 2548 | K11: Wp
B12: =Translation!B129 -> Solar PV costs: | D12: ='Calculation Sheet'!U71 -> 4765.2 | E12: ='Calculation Sheet'!$E$70 -> € | H12: =Translation!B129 -> Solar PV costs: | J12: ='Calculation Sheet'!P71 -> 2802.8 | K12: ='Calculation Sheet'!$E$70 -> €
H14: =Translation!B130 -> Battery size: | J14: ='Calculation Sheet'!P22 -> 680 | K14: Ah (12V)
H15: =Translation!B131 -> Battery costs: | J15: ='Calculation Sheet'!P73 -> 1360 | K15: ='Calculation Sheet'!$E$70 -> €
B18: =Translation!B132 -> Total initial investment: | D18: ='Calculation Sheet'!B131 -> 22365.2 | E18: ='Calculation Sheet'!$E$70 -> € | H18: =Translation!B132 -> Total initial investment: | J18: ='Calculation Sheet'!B105 -> 11362.8 | K18: ='Calculation Sheet'!$E$70 -> €
B19: =Translation!B133 -> Payback period: | D19: ='Calculation Sheet'!B132 -> 3.7 | E19: =Translation!B137 -> years | H19: =Translation!B133 -> Payback period: | J19: ='Calculation Sheet'!B106 -> 1.9 | K19: =Translation!B137 -> years
B20: =Translation!B134 -> Net present value: | D20: ='Calculation Sheet'!B133 -> 39623.83709 | E20: ='Calculation Sheet'!$E$70 -> € | H20: =Translation!B134 -> Net present value: | J20: ='Calculation Sheet'!B107 -> 52182.59485 | K20: ='Calculation Sheet'!$E$70 -> €
B21: =Translation!B135 -> Internal rate of return: | D21: ='Calculation Sheet'!B134*100 -> 24.63064435 | E21: % | H21: =Translation!B135 -> Internal rate of return: | J21: ='Calculation Sheet'!B108*100 -> 49.41429489 | K21: %

Sheet Calculation Sheet (hidden)
O2: =Translation!B120 -> Thermal losses cold month in kWh
B3: January | C3: February | D3: March | E3: April | F3: May | G3: June | H3: July | I3: August | J3: September | K3: October | L3: November | M3: December | O3: 0 | P3: 0
A4: Mean daily temperature [°C]: | B4: ='1 Geographic Data'!B8 -> 25.1 | C4: ='1 Geographic Data'!C8 -> 27.8 | D4: ='1 Geographic Data'!D8 -> 30.3 | E4: ='1 Geographic Data'!E8 -> 31.1 | F4: ='1 Geographic Data'!F8 -> 31.5 | G4: ='1 Geographic Data'!G8 -> 29 | H4: ='1 Geographic Data'!H8 -> 27.4 | I4: ='1 Geographic Data'!I8 -> 25.9 | J4: ='1 Geographic Data'!J8 -> 26.4 | K4: ='1 Geographic Data'!K8 -> 27.4 | L4: ='1 Geographic Data'!L8 -> 26.5 | M4: ='1 Geographic Data'!M8 -> 24.8 | O4: 24 | P4: =MIN(B6:M6) -> 7.4382
A5: Solar irradiation [kWh/m² day]: | B5: ='1 Geographic Data'!B9 -> 5.4 | C5: ='1 Geographic Data'!C9 -> 5.9 | D5: ='1 Geographic Data'!D9 -> 6.9 | E5: ='1 Geographic Data'!E9 -> 6.6 | F5: ='1 Geographic Data'!F9 -> 6.4 | G5: ='1 Geographic Data'!G9 -> 6.1 | H5: ='1 Geographic Data'!H9 -> 5.8 | I5: ='1 Geographic Data'!I9 -> 5.6 | J5: ='1 Geographic Data'!J9 -> 5.8 | K5: ='1 Geographic Data'!K9 -> 5.8 | L5: ='1 Geographic Data'!L9 -> 5.7 | M5: ='1 Geographic Data'!M9 -> 5.4 | O5: =Translation!B121 -> Thermal losses hot month in kWh
A6: Thermal losses for each day [kWh]: | B6: =(1+0.25*$G$61)*($E$53*$E$56*(B4-$E$40)*24/1000) -> 7.6659 | C6: =(1+0.25*$G$61)*($E$53*$E$56*(C4-$E$40)*24/1000) -> 9.7152 | D6: =(1+0.25*$G$61)*($E$53*$E$56*(D4-$E$40)*24/1000) -> 11.6127 | E6: 12.2199 | F6: 12.5235 | G6: 10.626 | H6: 9.4116 | I6: 8.2731 | J6: 8.6526 | K6: 9.4116 | L6: 8.7285 | M6: 7.4382 | O6: 0 | P6: 0
A7: Thermal Energy Liquid phase [kWh]: | B7: =$E$28*$E$32*($E$39-MAX($E$40,0))/3600 -> 8.054743267 | C7: =$E$28*$E$32*($E$39-MAX($E$40,0))/3600 -> 8.054743267 | D7: 8.054743267 | E7: 8.054743267 | F7: 8.054743267 | G7: 8.054743267 | H7: 8.054743267 | I7: 8.054743267 | J7: 8.054743267 | K7: 8.054743267 | L7: 8.054743267 | M7: 8.054743267 | O7: 24 | P7: =MAX(B6:M6) -> 12.5235
A8: Thermal Energy Change Phase [kWh]: | B8: =$E$28*$E$32*80/3600 -> 42.95863076 | C8: =$E$28*$E$32*80/3600 -> 42.95863076 | D8: 42.95863076 | E8: 42.95863076 | F8: 42.95863076 | G8: 42.95863076 | H8: 42.95863076 | I8: 42.95863076 | J8: 42.95863076 | K8: 42.95863076 | L8: 42.95863076 | M8: 42.95863076
A9: Thermal Energy Ice Phase [kWh]: | B9: =0.5*$E$28*$E$32*(0-MIN($E$40,0))/3600 -> 0 | C9: =0.5*$E$28*$E$32*(0-MIN($E$40,0))/3600 -> 0 | D9: 0 | E9: 0 | F9: 0 | G9: 0 | H9: 0 | I9: 0 | J9: 0 | K9: 0 | L9: 0 | M9: 0
A10: Max Power to cool down the product [kW]: | B10: =B12/$E$33 -> 0.3483445213 | C10: =C12/$E$33 -> 0.351747649 | D10: 0.3548986932 | E10: 0.3559070273 | F10: 0.3564111944 | G10: 0.3532601502 | H10: 0.3512434819 | I10: 0.3493528554 | J10: 0.3499830643 | K10: 0.3512434819 | L10: 0.350109106 | M10: 0.347966396
A11: Thermal Energy to cold down the air of the cold room once per day [kWh]: | B11: =$E$57*1.2*(B4-$E$40)*0.000277778 -> 0.3055252444 | C11: =$E$57*1.2*(C4-$E$40)*0.000277778 -> 0.3872003098 | D11: 0.4628253703 | E11: 0.4870253896 | F11: 0.4991253993 | G11: 0.4235003388 | H11: 0.3751003001 | I11: 0.3297252638 | J11: 0.3448502759 | K11: 0.3751003001 | L11: 0.3478752783 | M11: 0.2964502372
A12: Daily Energy to cool down the product and air [kWh]: | B12: =IF($E$40>0,B7,B7+B8+B9)*$E$34/30+B11 -> 8.360268511 | C12: =IF($E$40>0,C7,C7+C8+C9)*$E$34/30+C11 -> 8.441943576 | D12: 8.517568637 | E12: 8.541768656 | F12: 8.553868666 | G12: 8.478243605 | H12: 8.429843567 | I12: 8.38446853 | J12: 8.399593543 | K12: 8.429843567 | L12: 8.402618545 | M12: 8.351193504
A13: Qtotal for each day [kW]: | B13: =B6+B12 -> 16.02616851 | C13: =C6+C12 -> 18.15714358 | D13: 20.13026864 | E13: 20.76166866 | F13: 21.07736867 | G13: 19.10424361 | H13: 17.84144357 | I13: 16.65756853 | J13: 17.05219354 | K13: 17.84144357 | L13: 17.13111854 | M13: 15.7893935
A14: COP without battery: | B14: =$E$44*(1/((B4+5+273.15)/((MIN(-5,$E$43))+273.15)-1)) -> 1.909900285 | C14: =$E$44*(1/((C4+5+273.15)/((MIN(-5,$E$43))+273.15)-1)) -> 1.773478836 | D14: 1.663461538 | E14: 1.631082725 | F14: 1.615361446 | G14: 1.718910256 | H14: 1.792446524 | I14: 1.867339833 | J14: 1.84168956 | K14: 1.792446524 | L14: 1.836643836 | M14: 1.926364943
A15: COP with battery: | B15: =$E$44*(1/((B4+5+273.15)/((MIN(-5,$E$43))+273.15)-1)) -> 1.909900285 | C15: =$E$44*(1/((C4+5+273.15)/((MIN(-5,$E$43))+273.15)-1)) -> 1.773478836 | D15: 1.663461538 | E15: 1.631082725 | F15: 1.615361446 | G15: 1.718910256 | H15: 1.792446524 | I15: 1.867339833 | J15: 1.84168956 | K15: 1.792446524 | L15: 1.836643836 | M15: 1.926364943
A16: Energy needed without battery [kWhel]: | B16: =B13/B14 -> 8.391102215 | C16: =C13/C14 -> 10.23815069 | D16: 12.10143317 | E16: 12.72876497 | F16: 13.04808204 | G16: 11.11415999 | H16: 9.953682482 | I16: 8.920480481 | J16: 9.258994517 | K16: 9.953682482 | L16: 9.32740372 | M16: 8.196470542 | O16: Maximum values
A17: Engergy needed with battery [kWhel]: | B17: =B13/B15 -> 8.391102215 | C17: =C13/C15 -> 10.23815069 | D17: 12.10143317 | E17: 12.72876497 | F17: 13.04808204 | G17: 11.11415999 | H17: 9.953682482 | I17: 8.920480481 | J17: 9.258994517 | K17: 9.953682482 | L17: 9.32740372 | M17: 8.196470542 | P17: rounded
A18: Cooling units needed (no battery): | B18: =1000*B16/(70*8) -> 14.9841111 | C18: =1000*C17/(70*8) -> 18.28241195 | D18: 21.60970209 | E18: 22.72993745 | F18: 23.3001465 | G18: 19.84671428 | H18: 17.774433 | I18: 15.92942943 | J18: 16.53391878 | K18: 17.774433 | L18: 16.65607807 | M18: 14.63655454 | O18: =MAX(B18:M18) -> 23.3001465 | P18: =MAX(1,IF( O18-ROUNDDOWN(O18,0)<0.2, ROUNDDOWN(O18,0), ROUNDUP(O18,0) )) -> 24
A19: PV without battery (Wp): | B19: =(1+$E$64/100)*1.7*1000*B16/B5 -> 3302.054112 | C19: =(1+$E$64/100)*1.7*1000*C16/C5 -> 3687.46953 | D19: 3726.89065 | E19: 4098.276601 | F19: 4332.370989 | G19: 3871.736064 | H19: 3646.823323 | I19: 3385.003754 | J19: 3392.304026 | K19: 3646.823323 | L19: 3477.321562 | M19: 3225.462945 | O19: =MAX(B19:M19) -> 4332.370989 | P19: =ROUND(O19,0) -> 4332
A20: Cooling units needed (with battery): | B20: =1000*B17/(75*24) -> 4.661723453 | C20: =1000*C17/(75*24) -> 5.687861497 | D20: 6.723018427 | E20: 7.071536095 | F20: 7.248934466 | G20: 6.17453333 | H20: 5.529823601 | I20: 4.955822489 | J20: 5.143885843 | K20: 5.529823601 | L20: 5.181890956 | M20: 4.553594745 | O20: 7.248934466 | P20: =MAX(1,IF( O20-ROUNDDOWN(O20,0)<0.2, ROUNDDOWN(O20,0), ROUNDUP(O20,0) )) -> 8
A21: PV with battery (Wp): | B21: =(1+$E$64/100)*1000*B17/B5 -> 1942.384772 | C21: =(1+$E$64/100)*1000*C17/C5 -> 2169.099723 | D21: 2192.288618 | E21: 2410.750942 | F21: 2548.453523 | G21: 2277.491802 | H21: 2145.19019 | I21: 1991.178679 | J21: 1995.472956 | K21: 2145.19019 | L21: 2045.483272 | M21: 1897.331144 | O21: 2548.453523 | P21: 2548
A22: Battery (Ah related to 12 V): | B22: =MAX($E$63,1)*(1+$E$64/100)*1000/2*B17/12 -> 437.0365737 | C22: =MAX($E$63,1)*(1+$E$64/100)*1000/2*C17/12 -> 533.2370153 | D22: 630.2829776 | E22: 662.9565089 | F22: 679.5876062 | G22: 578.8624997 | H22: 518.4209626 | I22: 464.6083584 | J22: 482.2392978 | K22: 518.4209626 | L22: 485.8022771 | M22: 426.8995074 | O22: 679.5876062 | P22: 680
A26: Product information
A28: ='2 Input'!B8 -> Total mass to be cooled | D28: Mass = | E28: ='2 Input'!F8 -> 500 | F28: kg or l
A29: ='2 Input'!B9 -> Moisture content of the product | D29: MC = | E29: ='2 Input'!F9 -> 86 | F29: %
A30: ='2 Input'!B10 -> or Heat capacity of the product | D30: cp = | E30: ='2 Input'!F10 -> 0 | F30: kJ/kg K
A31: Calculated heat capacity of the product: | D31: cp = | E31: =4.19-2.3*((100-E29)/100)-0.628*((100-E29)/100)^3 -> 3.866276768 | F31: kJ/kg K
A32: CP due to input of the user (either calculated via MC or direct) | D32: cp = | E32: =IF(E30>0,E30,E31) -> 3.866276768 | F32: kJ/kg K
D33: t = | E33: 24 | F33: h
A34: How many days will the product be cooled? | E34: 30
A37: Temperature information
A39: ='2 Input'!B18 -> Initial temperature of the product | D39: Ti = | E39: ='2 Input'!F18 -> 30 | F39: °C
A40: ='2 Input'!B19 -> Final temperature of the product | D40: Tm = | E40: ='2 Input'!F19 -> 15 | F40: °C
A42: Maximum Temperature within the year: | D42: Tyearmax = | E42: =MAX(B4:M4) -> 31.5 | F42: °C
A43: Temperature within the cooling device ( Final temp - 5°C): | D43: Tcold = | E43: =E40-5 -> 10 | F43: °C
A44: Alpha - value: | E44: 0.25
D45: COP worst case = | E45: =$E$44*(1/((E42+273.15)/($E$43+273.15)-1)) -> 3.29244186
A48: Isolation material
A50: Inner length of the cold room | D50: x = | E50: ='2 Input'!F31 -> 5.5 | F50: m
A51: Inner width of the cold room | D51: y = | E51: ='2 Input'!F32 -> 5.5 | F51: m
A52: Inner height of the cold room | D52: z = | E52: ='2 Input'!F33 -> 3 | F52: m
A53: Inner area of the cold room | D53: A = | E53: =2*(E50*E51+E51*E52+E50*E52) -> 126.5 | F53: m²
A54: ='2 Input'!B34 -> Thermal conductivity of insulation | D54: k / l = | E54: ='2 Input'!F34 -> 0.04 | F54: W/m K
A55: ='2 Input'!B35 -> Thickness of insulation | D55: L = | E55: ='2 Input'!F35 -> 0.2 | F55: m
D56: U = | E56: =E54/E55 -> 0.2
A57: Cold Room Volume | D57: V= | E57: ='2 Input'!F30 -> 90.75 | F57: m3 | O57: Batteries:
P58: Yes | Q58: =IF(H85="Yes",1,0) -> 1
P59: No | Q59: =1-Q58 -> 0
A60: System information
A61: ='2 Input'!B36 -> Ice storage inside the cold room? | E61: =IF(OR('2 Input'!F36=Translation!E86,'2 Input'!F36=Translation!F86,'2 Input'!F36=Translation!G86,'2 Input'!F36=Translation!H86),"Yes","No") -> Yes | G61: =IF(E61="Yes",1,0) -> 1
A62: Batteries | E62: =IF(OR('2 Input'!F24=Translation!E86,'2 Input'!F24=Translation!F86,'2 Input'!F24=Translation!G86,'2 Input'!F24=Translation!H86),"Yes","No") -> Yes | G62: =IF(E62="Yes",1,0) -> 1
A63: ='2 Input'!B25 -> Autonomy of the system | E63: ='2 Input'!F25 -> 1
A64: ='2 Input'!B26 -> System losses | E64: ='2 Input'!F26 -> 25 | F64: %
A68: Economic information | H68: Income | N68: System with Battery | S68: System without Battery
A70: ='2 Input'!B40 -> Currency used for calculation | E70: ='2 Input'!F40 -> €
A71: ='2 Input'!B41 -> Specific cost of PV | E71: ='2 Input'!F41 -> 1.1 | F71: =E70&"/Wp" -> €/Wp | H71: Additional income per product: | K71: =E79*E28*E34*12 -> 0 | L71: =E70&"/year" -> €/year | N71: Total PV Costs: | P71: =P21*E71 -> 2802.8 | S71: Total PV Costs: | U71: =P19*E71 -> 4765.2
A72: ='2 Input'!B42 -> PV lifetime | E72: ='2 Input'!F42 -> 21 | F72: years | H72: Additional income per year: | K72: =E80*12 -> 6000 | L72: =E70&"/year" -> €/year | N72: Lifetime PV: | P72: =E72 -> 21 | S72: Lifetime PV: | U72: =E72 -> 21
A73: ='2 Input'!B43 -> Specif cost of battery | E73: ='2 Input'!F43 -> 2 | F73: =E70&"/Ah@12V" -> €/Ah@12V | H73: Total income : | K73: =SUM(K71:K72) -> 6000 | L73: =E70&"/year" -> €/year | N73: Total Battery costs: | P73: =P22*E73 -> 1360
A74: ='2 Input'!B44 -> Battery lifetime | E74: ='2 Input'!F44 -> 3 | F74: years | N74: Lifetime battery: | P74: =E74 -> 3
A75: ='2 Input'!B45 -> Cost of solar cooling unit | E75: ='2 Input'!F45 -> 650 | F75: =E70 -> € | N75: Total solar cooling unit costs: | P75: =P20*E75 -> 5200 | S75: Total solar cooling unit costs: | U75: =P18*E75 -> 15600
A76: ='2 Input'!B46 -> Solar cooling unit lifetime | E76: ='2 Input'!F46 -> 12 | F76: years | N76: Lifetime cooling unit: | P76: =E76 -> 12 | S76: Lifetime cooling unit: | U76: =E76 -> 12
A77: ='2 Input'!B47 -> Material & construction costs for cooling box | E77: ='2 Input'!F47 -> 2000 | F77: =E70 -> € | N77: Material & construction: | P77: =E77 -> 2000 | S77: Material & construction: | U77: =E77 -> 2000
A78: ='2 Input'!B48 -> Maintenance costs per year | E78: ='2 Input'!F48 -> 25 | F78: =E70&"/year" -> €/year | N78: Maintenance per year: | P78: =E78 -> 25 | S78: Maintenance per year: | U78: =E78 -> 25
A79: ='2 Input'!B50 -> Additional income per product unit | E79: ='2 Input'!F50 -> 0 | F79: =E70&"/kg or l" -> €/kg or l
A80: ='2 Input'!B51 -> Additional income per month | E80: ='2 Input'!F51 -> 500 | F80: =E70&"/year" -> €/year
A81: ='2 Input'!B52 -> Discount rate | E81: ='2 Input'!F52 -> 5 | F81: %
A82: ='2 Input'!B53 -> Inflation | E82: ='2 Input'!F53 -> 3 | F82: %
B85: Economic Analysis: System with battery | F85: With batteries? | H85: =E62 -> Yes
D87: =IF(E103<0,0,1) -> 1 | E87: 1 | F87: 1 | G87: 1 | H87: 1 | I87: 1 | J87: 1 | K87: 1 | L87: 1 | M87: 1 | N87: 1 | O87: 1 | P87: 1 | Q87: 1 | R87: 1 | S87: 1 | T87: 1 | U87: 1 | V87: 1 | W87: 1 | X87: 1 | Y87: 1 | Z87: 1 | AA87: 1 | AB87: 1
B88: Year | C88: 0 | D88: 1 | E88: 2 | F88: 3 | G88: 4 | H88: 5 | I88: 6 | J88: 7 | K88: 8 | L88: 9 | M88: 10 | N88: 11 | O88: 12 | P88: 13 | Q88: 14 | R88: 15 | S88: 16 | T88: 17 | U88: 18 | V88: 19 | W88: 20 | X88: 21 | Y88: 22 | Z88: 23 | AA88: 24 | AB88: 25
A90: PV Costs | C90: =P71 -> 2802.8 | D90: =IF(MOD(D88,$P$72)=0,$C$90*(1+($E$82/100))^D88,0) -> 0 | E90: 0 | F90: 0 | G90: 0 | H90: 0 | I90: 0 | J90: 0 | K90: 0 | L90: 0 | M90: 0 | N90: 0 | O90: 0 | P90: 0 | Q90: 0 | R90: 0 | S90: 0 | T90: 0 | U90: 0 | V90: 0 | W90: 0 | X90: 5214.033626 | Y90: 0 | Z90: 0 | AA90: 0 | AB90: 0
A91: Battery Costs | C91: =P73 -> 1360 | D91: =IF(MOD(D88,$P$74)=0,$C$91*(1+($E$82/100))^D88,0) -> 0 | E91: 0 | F91: 1486.10872 | G91: 0 | H91: 0 | I91: 1623.911123 | J91: 0 | K91: 0 | L91: 1774.49153 | M91: 0 | N91: 0 | O91: 1939.034806 | P91: 0 | Q91: 0 | R91: 2118.835687 | S91: 0 | T91: 0 | U91: 2315.308963 | V91: 0 | W91: 0 | X91: 2530.000618 | Y91: 0 | Z91: 0 | AA91: 2764.599985 | AB91: 0
A92: Solar cooling units cost | C92: =P75 -> 5200 | D92: =IF(MOD(D88,$P$76)=0,$C$92*(1+($E$82/100))^D88,0) -> 0 | E92: 0 | F92: 0 | G92: 0 | H92: 0 | I92: 0 | J92: 0 | K92: 0 | L92: 0 | M92: 0 | N92: 0 | O92: 7413.956612 | P92: 0 | Q92: 0 | R92: 0 | S92: 0 | T92: 0 | U92: 0 | V92: 0 | W92: 0 | X92: 0 | Y92: 0 | Z92: 0 | AA92: 10570.52935 | AB92: 0
A93: Material & Construction | C93: =P77 -> 2000 | D93: 0 | E93: 0 | F93: 0 | G93: 0 | H93: 0 | I93: 0 | J93: 0 | K93: 0 | L93: 0 | M93: 0 | N93: 0 | O93: 0 | P93: 0 | Q93: 0 | R93: 0 | S93: 0 | T93: 0 | U93: 0 | V93: 0 | W93: 0 | X93: 0 | Y93: 0 | Z93: 0 | AA93: 0 | AB93: 0
A94: Maintenance costs | C94: 0 | D94: =P78 -> 25 | E94: =$D$94*(1+($E$82/100))^(E88-1) -> 25.75 | F94: =$D$94*(1+($E$82/100))^(F88-1) -> 26.5225 | G94: 27.318175 | H94: 28.13772025 | I94: 28.98185186 | J94: 29.85130741 | K94: 30.74684664 | L94: 31.66925203 | M94: 32.6193296 | N94: 33.59790948 | O94: 34.60584677 | P94: 35.64402217 | Q94: 36.71334284 | R94: 37.81474312 | S94: 38.94918542 | T94: 40.11766098 | U94: 41.32119081 | V94: 42.56082653 | W94: 43.83765133 | X94: 45.15278087 | Y94: 46.50736429 | Z94: 47.90258522 | AA94: 49.33966278 | AB94: 50.81985266
A96: Expenses per year: | C96: =SUM(C90:C95) -> 11362.8 | D96: =SUM(D90:D95) -> 25 | E96: 25.75 | F96: 1512.63122 | G96: 27.318175 | H96: 28.13772025 | I96: 1652.892975 | J96: 29.85130741 | K96: 30.74684664 | L96: 1806.160782 | M96: 32.6193296 | N96: 33.59790948 | O96: 9387.597264 | P96: 35.64402217 | Q96: 36.71334284 | R96: 2156.65043 | S96: 38.94918542 | T96: 40.11766098 | U96: 2356.630154 | V96: 42.56082653 | W96: 43.83765133 | X96: 7789.187024 | Y96: 46.50736429 | Z96: 47.90258522 | AA96: 13384.469 | AB96: 50.81985266
A97: Expenses per year accumulated: | C97: =C96 -> 11362.8 | D97: =SUM($C$96:D96) -> 11387.8 | E97: =SUM($C$96:E96) -> 11413.55 | F97: =SUM($C$96:F96) -> 12926.18122 | G97: =SUM($C$96:G96) -> 12953.49939 | H97: =SUM($C$96:H96) -> 12981.63712 | I97: =SUM($C$96:I96) -> 14634.53009 | J97: =SUM($C$96:J96) -> 14664.3814 | K97: =SUM($C$96:K96) -> 14695.12824 | L97: =SUM($C$96:L96) -> 16501.28903 | M97: =SUM($C$96:M96) -> 16533.90836 | N97: =SUM($C$96:N96) -> 16567.50627 | O97: =SUM($C$96:O96) -> 25955.10353 | P97: =SUM($C$96:P96) -> 25990.74755 | Q97: =SUM($C$96:Q96) -> 26027.4609 | R97: =SUM($C$96:R96) -> 28184.11132 | S97: =SUM($C$96:S96) -> 28223.06051 | T97: =SUM($C$96:T96) -> 28263.17817 | U97: =SUM($C$96:U96) -> 30619.80833 | V97: =SUM($C$96:V96) -> 30662.36915 | W97: =SUM($C$96:W96) -> 30706.2068 | X97: =SUM($C$96:X96) -> 38495.39383 | Y97: =SUM($C$96:Y96) -> 38541.90119 | Z97: =SUM($C$96:Z96) -> 38589.80378 | AA97: =SUM($C$96:AA96) -> 51974.27278 | AB97: =SUM($C$96:AB96) -> 52025.09263
A98: Expenses per year accumulated (for hiding in the diagramm): | C98: =IF($H$85="YES",C97,NA()) -> 11362.8 | D98: =IF($H$85="YES",D97,NA()) -> 11387.8 | E98: 11413.55 | F98: 12926.18122 | G98: 12953.49939 | H98: 12981.63712 | I98: 14634.53009 | J98: 14664.3814 | K98: 14695.12824 | L98: 16501.28903 | M98: 16533.90836 | N98: 16567.50627 | O98: 25955.10353 | P98: 25990.74755 | Q98: 26027.4609 | R98: 28184.11132 | S98: 28223.06051 | T98: 28263.17817 | U98: 30619.80833 | V98: 30662.36915 | W98: 30706.2068 | X98: 38495.39383 | Y98: 38541.90119 | Z98: 38589.80378 | AA98: 51974.27278 | AB98: 52025.09263
A100: Accumulated income per year: | C100: 0 | D100: =K73 -> 6000 | E100: =$K$73+D100 -> 12000 | F100: =$K$73+E100 -> 18000 | G100: 24000 | H100: 30000 | I100: 36000 | J100: 42000 | K100: 48000 | L100: 54000 | M100: 60000 | N100: 66000 | O100: 72000 | P100: 78000 | Q100: 84000 | R100: 90000 | S100: 96000 | T100: 102000 | U100: 108000 | V100: 114000 | W100: 120000 | X100: 126000 | Y100: 132000 | Z100: 138000 | AA100: 144000 | AB100: 150000
A101: Income per year: | D101: =$K$73 -> 6000 | E101: =$K$73 -> 6000 | F101: 6000 | G101: 6000 | H101: 6000 | I101: 6000 | J101: 6000 | K101: 6000 | L101: 6000 | M101: 6000 | N101: 6000 | O101: 6000 | P101: 6000 | Q101: 6000 | R101: 6000 | S101: 6000 | T101: 6000 | U101: 6000 | V101: 6000 | W101: 6000 | X101: 6000 | Y101: 6000 | Z101: 6000 | AA101: 6000 | AB101: 6000
A102: Cashfow per year: | C102: =C100-C97 -> -11362.8 | D102: =D101-D96 -> 5975 | E102: =E101-E96 -> 5974.25 | F102: 4487.36878 | G102: 5972.681825 | H102: 5971.86228 | I102: =I101-I96 -> 4347.107025 | J102: 5970.148693 | K102: 5969.253153 | L102: 4193.839218 | M102: 5967.38067 | N102: 5966.402091 | O102: -3387.597264 | P102: 5964.355978 | Q102: 5963.286657 | R102: 3843.34957 | S102: 5961.050815 | T102: 5959.882339 | U102: 3643.369846 | V102: 5957.439173 | W102: 5956.162349 | X102: -1789.187024 | Y102: 5953.492636 | Z102: 5952.097415 | AA102: -7384.469001 | AB102: 5949.180147
A103: Accumulated cashflow per year (for payback calculation) | C103: =C102 -> -11362.8 | D103: =C103+D102 -> -5387.8 | E103: =D103+E102 -> 586.45 | F103: 5073.81878 | G103: 11046.50061 | H103: 17018.36288 | I103: 21365.46991 | J103: 27335.6186 | K103: 33304.87176 | L103: 37498.71097 | M103: 43466.09164 | N103: 49432.49373 | O103: 46044.89647 | P103: 52009.25245 | Q103: 57972.5391 | R103: 61815.88868 | S103: 67776.93949 | T103: =S103+T102 -> 73736.82183 | U103: =T103+U102 -> 77380.19167 | V103: =U103+V102 -> 83337.63085 | W103: =V103+W102 -> 89293.7932 | X103: =W103+X102 -> 87504.60617 | Y103: =X103+Y102 -> 93458.09881 | Z103: =Y103+Z102 -> 99410.19622 | AA103: =Z103+AA102 -> 92025.72722 | AB103: =AA103+AB102 -> 97974.90737
C104: =C88+ABS(C103)/(ABS(C103)+ABS(D103)) -> 0.6783518202 | D104: 1.901837051 | E104: =E88+ABS(E103)/(ABS(E103)+ABS(F103)) -> 2.103608154 | F104: =F88+ABS(F103)/(ABS(F103)+ABS(G103)) -> 3.31474679 | G104: 4.393606069 | H104: 5.443373203 | I104: 6.438706209 | J104: 7.450781622 | K104: 8.47038399 | L104: 9.463148303 | M104: 10.46788755 | N104: 11.51774031 | O104: 12.46958642 | P104: 13.47288966 | Q104: 14.48395776 | R104: 15.47700085 | S104: 16.47894239 | T104: 17.4879452 | U104: 18.48146615 | V104: 19.4827489 | W104: 20.50505996 | X104: 21.4835505 | Y104: 22.48456953 | Z104: 23.51928705 | AA104: 24.48434432 | AB104: 26
A105: Total initial investment costs: | B105: =SUM(C90:C94) -> 11362.8 | C105: =E70 -> €
A106: Payback period: | B106: =ROUND(IF(W103<0,25,HLOOKUP(1,D87:AB104,18,FALSE)),1) -> 1.9 | C106: years
A107: Net Present Value: | B107: =C102+NPV((E81/100),D102:W102) -> 52182.59485 | C107: =E70 -> €
A108: Internal Rate of Return: | B108: =IRR(C102:W102) -> 0.4941429489
B113: Economic Analysis: System without battery
D115: =IF(E129<0,0,1) -> 0 | E115: =IF(F129<0,0,1) -> 0 | F115: 1 | G115: 1 | H115: 1 | I115: 1 | J115: 1 | K115: 1 | L115: 1 | M115: 1 | N115: 1 | O115: 1 | P115: 1 | Q115: 1 | R115: 1 | S115: 1 | T115: 1 | U115: 1 | V115: 1 | W115: 1 | X115: 1 | Y115: 1 | Z115: 1 | AA115: 1 | AB115: 1
B116: Year | C116: 0 | D116: 1 | E116: 2 | F116: 3 | G116: 4 | H116: 5 | I116: 6 | J116: 7 | K116: 8 | L116: 9 | M116: 10 | N116: 11 | O116: 12 | P116: 13 | Q116: 14 | R116: 15 | S116: 16 | T116: 17 | U116: 18 | V116: 19 | W116: 20 | X116: 21 | Y116: 22 | Z116: 23 | AA116: 24 | AB116: 25
AE117: Titles for the diagramm:
A118: PV Costs | C118: =U71 -> 4765.2 | D118: =IF(MOD(D116,$U$72)=0,$C$118*(1+($E$82/100))^D116,0) -> 0 | E118: 0 | F118: 0 | G118: 0 | H118: 0 | I118: 0 | J118: 0 | K118: 0 | L118: 0 | M118: 0 | N118: 0 | O118: 0 | P118: 0 | Q118: 0 | R118: 0 | S118: 0 | T118: 0 | U118: 0 | V118: 0 | W118: 0 | X118: 8864.675693 | Y118: 0 | Z118: 0 | AA118: 0 | AB118: 0
A119: Solar cooling units cost | C119: =U75 -> 15600 | D119: =IF(MOD(D116,$U$76)=0,$C$119*(1+($E$82/100))^D116,0) -> 0 | E119: 0 | F119: 0 | G119: 0 | H119: 0 | I119: 0 | J119: 0 | K119: 0 | L119: 0 | M119: 0 | N119: 0 | O119: 22241.86983 | P119: 0 | Q119: 0 | R119: 0 | S119: 0 | T119: 0 | U119: 0 | V119: 0 | W119: 0 | X119: 0 | Y119: 0 | Z119: 0 | AA119: 31711.58806 | AB119: 0 | AE119: =Translation!B140 -> Accumulated income
A120: Material & Construction | C120: =U77 -> 2000 | D120: 0 | E120: 0 | F120: 0 | G120: 0 | H120: 0 | I120: 0 | J120: 0 | K120: 0 | L120: 0 | M120: 0 | N120: 0 | O120: 0 | P120: 0 | Q120: 0 | R120: 0 | S120: 0 | T120: 0 | U120: 0 | V120: 0 | W120: 0 | X120: 0 | Y120: 0 | Z120: 0 | AA120: 0 | AB120: 0 | AE120: =IF(H85="Yes",Translation!B142,"") -> Accumulated system costs with batteries
A121: Maintenance costs | C121: 0 | D121: =U78 -> 25 | E121: =$D$121*(1+($E$82/100))^(E116-1) -> 25.75 | F121: 26.5225 | G121: 27.318175 | H121: 28.13772025 | I121: 28.98185186 | J121: 29.85130741 | K121: 30.74684664 | L121: 31.66925203 | M121: 32.6193296 | N121: 33.59790948 | O121: 34.60584677 | P121: 35.64402217 | Q121: 36.71334284 | R121: 37.81474312 | S121: 38.94918542 | T121: 40.11766098 | U121: 41.32119081 | V121: 42.56082653 | W121: 43.83765133 | X121: 45.15278087 | Y121: 46.50736429 | Z121: 47.90258522 | AA121: 49.33966278 | AB121: 50.81985266 | AE121: =Translation!B141 -> Accumulated system costs without batteries
A123: Expenses per year: | C123: =SUM(C118:C122) -> 22365.2 | D123: 25 | E123: 25.75 | F123: 26.5225 | G123: 27.318175 | H123: 28.13772025 | I123: 28.98185186 | J123: 29.85130741 | K123: 30.74684664 | L123: 31.66925203 | M123: 32.6193296 | N123: 33.59790948 | O123: 22276.47568 | P123: 35.64402217 | Q123: 36.71334284 | R123: 37.81474312 | S123: 38.94918542 | T123: 40.11766098 | U123: 41.32119081 | V123: 42.56082653 | W123: 43.83765133 | X123: 8909.828474 | Y123: 46.50736429 | Z123: 47.90258522 | AA123: 31760.92772 | AB123: 50.81985266
A124: Expenses per year accumulated: | C124: =C123 -> 22365.2 | D124: =SUM($C$123:D123) -> 22390.2 | E124: =SUM($C$123:E123) -> 22415.95 | F124: =SUM($C$123:F123) -> 22442.4725 | G124: =SUM($C$123:G123) -> 22469.79068 | H124: =SUM($C$123:H123) -> 22497.9284 | I124: =SUM($C$123:I123) -> 22526.91025 | J124: =SUM($C$123:J123) -> 22556.76155 | K124: =SUM($C$123:K123) -> 22587.5084 | L124: =SUM($C$123:L123) -> 22619.17765 | M124: =SUM($C$123:M123) -> 22651.79698 | N124: =SUM($C$123:N123) -> 22685.39489 | O124: =SUM($C$123:O123) -> 44961.87057 | P124: =SUM($C$123:P123) -> 44997.5146 | Q124: =SUM($C$123:Q123) -> 45034.22794 | R124: =SUM($C$123:R123) -> 45072.04268 | S124: =SUM($C$123:S123) -> 45110.99187 | T124: =SUM($C$123:T123) -> 45151.10953 | U124: =SUM($C$123:U123) -> 45192.43072 | V124: =SUM($C$123:V123) -> 45234.99155 | W124: =SUM($C$123:W123) -> 45278.8292 | X124: =SUM($C$123:X123) -> 54188.65767 | Y124: =SUM($C$123:Y123) -> 54235.16504 | Z124: =SUM($C$123:Z123) -> 54283.06762 | AA124: =SUM($C$123:AA123) -> 86043.99534 | AB124: =SUM($C$123:AB123) -> 86094.8152
A126: Accumulated investment per year: | C126: 0 | D126: =K73 -> 6000 | E126: =$K$73+D126 -> 12000 | F126: =$K$73+E126 -> 18000 | G126: 24000 | H126: 30000 | I126: 36000 | J126: 42000 | K126: 48000 | L126: 54000 | M126: 60000 | N126: 66000 | O126: 72000 | P126: 78000 | Q126: 84000 | R126: 90000 | S126: 96000 | T126: 102000 | U126: 108000 | V126: 114000 | W126: 120000 | X126: 126000 | Y126: 132000 | Z126: 138000 | AA126: 144000 | AB126: 150000
A127: Income per year: | D127: =$K$73 -> 6000 | E127: =$K$73 -> 6000 | F127: 6000 | G127: 6000 | H127: 6000 | I127: 6000 | J127: 6000 | K127: 6000 | L127: 6000 | M127: 6000 | N127: 6000 | O127: 6000 | P127: 6000 | Q127: 6000 | R127: 6000 | S127: 6000 | T127: 6000 | U127: 6000 | V127: 6000 | W127: 6000 | X127: 6000 | Y127: 6000 | Z127: 6000 | AA127: 6000 | AB127: 6000
A128: Cashfow per year: | C128: =C126-C124 -> -22365.2 | D128: =D127-D123 -> 5975 | E128: =E127-E123 -> 5974.25 | F128: 5973.4775 | G128: 5972.681825 | H128: 5971.86228 | I128: 5971.018148 | J128: 5970.148693 | K128: 5969.253153 | L128: 5968.330748 | M128: 5967.38067 | N128: 5966.402091 | O128: -16276.47568 | P128: 5964.355978 | Q128: 5963.286657 | R128: 5962.185257 | S128: 5961.050815 | T128: 5959.882339 | U128: 5958.678809 | V128: 5957.439173 | W128: 5956.162349 | X128: -2909.828474 | Y128: 5953.492636 | Z128: 5952.097415 | AA128: -25760.92772 | AB128: 5949.180147
A129: Accumulated cashflow per year (for payback calculation) | C129: =C128 -> -22365.2 | D129: =C129+D128 -> -16390.2 | E129: =D129+E128 -> -10415.95 | F129: -4442.4725 | G129: 1530.209325 | H129: 7502.071605 | I129: 13473.08975 | J129: 19443.23845 | K129: 25412.4916 | L129: 31380.82235 | M129: 37348.20302 | N129: 43314.60511 | O129: 27038.12943 | P129: 33002.4854 | Q129: 38965.77206 | R129: 44927.95732 | S129: 50889.00813 | T129: 56848.89047 | U129: 62807.56928 | V129: 68765.00845 | W129: 74721.1708 | X129: 71811.34233 | Y129: 77764.83496 | Z129: 83716.93238 | AA129: 57956.00466 | AB129: 63905.1848
D130: =D116+ABS(D129)/(ABS(D129)+ABS(E129)) -> 1.611434316 | E130: =E116+ABS(E129)/(ABS(E129)+ABS(F129)) -> 2.70101318 | F130: 3.74379862 | G130: 4.169415604 | H130: 5.357664548 | I130: 6.409313265 | J130: 7.433461643 | K130: 8.447455692 | L130: 9.456587623 | M130: 10.4630164 | N130: 11.61567763 | O130: 12.45033066 | P130: 13.45857002 | Q130: 14.46446585 | R130: 15.46889355 | S130: 16.47234083 | T130: 17.47510089 | U130: 18.47736064 | V130: 19.47924482 | W130: 20.50992895 | X130: 21.48009879 | Y130: 22.48157037 | Z130: 23.5909169 | AA130: 24.47559034 | AB130: 26
A131: Total initial investment costs: | B131: =SUM(C118:C122) -> 22365.2 | C131: =E70 -> €
A132: Payback period: | B132: =ROUND(IF(W129<0,25,HLOOKUP(1,D115:AB130,16,FALSE)),1) -> 3.7 | C132: years
A133: Net Present Value: | B133: =C128+NPV((E81/100),D128:W128) -> 39623.83709 | C133: =E70 -> €
A134: Internal Rate of Return: | B134: =IRR(C128:W128) -> 0.2463064435
A136: Cooling Curve Calculation
A138: Initial temperature of the product | D138: Ti = | E138: ='2 Input'!F18 -> 30 | F138: °C | M138: Time (h) | N138: =P159 -> Temperature of the product
A139: Final temperature of the product | D139: Tm = | E139: ='2 Input'!F19 -> 15 | F139: °C | M139: 0 | N139: =E138 -> 30
M140: 1 | N140: =($E$139-($E$139-$E$138)*EXP(-M140*3600/$B$151)) -> 24.11530175
A141: Total mass to be cooled | D141: Mass = | E141: ='2 Input'!F8 -> 500 | F141: kg/day | M141: 2 | N141: =($E$139-($E$139-$E$138)*EXP(-M141*3600/$B$151)) -> 20.53924839
A142: Moisture content of the product | D142: MC = | E142: ='2 Input'!F9 -> 86 | F142: % wet based | M142: 3 | N142: 18.36612804
A143: or Heat capacity of the product | D143: cp = | E143: ='2 Input'!F10 -> 0 | F143: kJ/kg K | H143: Calculated heat Capacity of the product: | K143: =4.19-2.3*((100-E142)/100)-0.628*((100-E142)/100)^3 -> 3.866276768 | L143: kJ/kg K | M143: 4 | N143: 17.04555152
A144: Radius | D144: r = | E144: ='2 Input'!F11 -> 0.05 | F144: m | H144: cp value due to selection: | K144: =IF(E143>0,E143,K143) -> 3.866276768 | L144: kJ/kg K | M144: 5 | N144: 16.24305462
A145: Density | D145: δ = | E145: ='2 Input'!F12 -> 997 | F145: kg/m³ | M145: 6 | N145: 15.75538786
A146: Convection air - product | D146: h = | E146: ='2 Input'!F13 -> 5 | F146: W/m²K | M146: 7 | N146: 15.45903922
M147: 8 | N147: 15.27895207
M148: 9 | N148: 15.16951548
A149: Volumen Product | B149: =3/4*PI()*E144^3 -> 0.0002945243113 | C149: m³ | M149: 10 | N149: 15.10301232
A150: Surface Product | B150: =4*PI()*E144^2 -> 0.03141592654 | C150: m² | M150: 11 | N150: 15.06259923
A151: Time constant Tau | B151: =3600*E145*K144*0.277778*B149/(B150*E146) -> 7227.526915 | C151: s | M151: 12 | N151: 15.03804072
A152: Product Mass | B152: =E145*B149*1000 -> 293.6407383 | C152: g/unit | M152: 13 | N152: 15.02311684
A153: Cold Room Volume | B153: ='2 Input'!F30 -> 90.75 | C153: m3 | H153: T: Temperature Cooling medium | M153: 14 | N153: 15.0140478
H154: Tset: Start temperature | M154: 15 | N154: 15.00853666 | P154: Titles for the diagramm
H155: t: Time (s) | M155: 16 | N155: 15.00518762
M156: 17 | N156: 15.00315245 | P156: =Translation!B114 -> Cooling Curve
A157: Cooling Load Calculation | M157: 18 | N157: 15.0019157 | P157: =Translation!B115 -> Temperature in °C
M158: 19 | N158: 15.00116415 | P158: =Translation!B116 -> Time in h
M159: 20 | N159: 15.00070744 | P159: =Translation!B117 -> Temperature of the product
A160: Total mass to be cooled | D160: Mass = | E160: ='2 Input'!F8 -> 500 | F160: kg/day | M160: 21 | N160: 15.0004299
A161: Area of the refrigerator | D161: A = | E161: ='2 Input'!F33 -> 3 | F161: m² | M161: 22 | N161: 15.00026124
A162: Thermal conductivity of insulation | D162: k / l = | E162: ='2 Input'!F34 -> 0.04 | F162: W/m K | M162: 23 | N162: 15.00015875
A163: Thickness of insulation | D163: L = | E163: ='2 Input'!F35 -> 0.2 | F163: m | M163: 24 | N163: 15.00009647
A164: Ice storage inside the cold room? | E164: =IF(OR('2 Input'!F36=Translation!E86,'2 Input'!F36=Translation!F86,'2 Input'!F36=Translation!G86),"Yes","No") -> Yes
A165: Final temperature of the product | D165: Tm = | E165: ='2 Input'!F19 -> 15 | F165: °C
A167: U | B167: =E162/E163 -> 0.2 | C167: W/m²
A168: cp value due to selection: | B168: =IF(E143>0,E143,K143) -> 3.866276768 | C168: kJ/kg
B170: Time (h) | C170: T product (°C) | D170: T Ambient (°C) | E170: Q Product (kW) | F170: Q transmission (losses through insulation) (kW) | G170: =K190 -> Accumulated Cooling load in kWh
B171: =M139 -> 0 | C171: =N139 -> 30 | D171: 26.6 | E171: =($C171-$C172)*$E$160*$B$168/(($B172-$B171)*3600) -> 3.159982243 | F171: =$B$167*$E$161*(D171-$E$165)/1000 -> 0.00696 | G171: 0
B172: =M140 -> 1 | C172: 24.11530175 | D172: 27.3 | E172: 1.920279444 | F172: 0.00738 | G172: =(E171+F171)*(B172-B171) -> 3.166942243
B173: =M141 -> 2 | C173: 20.53924839 | D173: 28 | E173: 1.166928438 | F173: 0.0078 | G173: =G172+(E172+F172)*(B173-B172) -> 5.094601686
B174: =M142 -> 3 | C174: 18.36612804 | D174: 28.6 | E174: 0.7091269883 | F174: 0.00816 | G174: =G173+(E173+F173)*(B174-B173) -> 6.269330124
B175: =M143 -> 4 | C175: 17.04555152 | D175: 27.7 | E175: 0.4309270983 | F175: 0.00762 | G175: 6.986617112
B176: =M144 -> 5 | C176: 16.24305462 | D176: 26.8 | E176: 0.2618687021 | F176: 0.00708 | G176: 7.42516421
B177: =M145 -> 6 | C177: 15.75538786 | D177: 25.8 | E177: 0.1591341492 | F177: 0.00648 | G177: =G176+(E176+F176)*(B177-B176) -> 7.694112912
B178: =M146 -> 7 | C178: 15.45903922 | D178: 24.3 | E178: 0.09670371918 | F178: 0.00558 | G178: 7.859727062
B179: =M147 -> 8 | C179: 15.27895207 | D179: 23 | E179: 0.05876557202 | F179: 0.0048 | G179: 7.962010781
B180: =M148 -> 9 | C180: 15.16951548 | D180: 21.8 | E180: 0.03571106142 | F180: 0.00408 | G180: 8.025576353
B181: =M149 -> 10 | C181: 15.10301232 | D181: 21.3 | E181: 0.02170114003 | F181: 0.00378 | G181: 8.065367414
B182: =M150 -> 11 | C182: 15.06259923 | D182: 20.9 | E182: 0.01318749597 | F182: 0.00354 | G182: 8.090848554
B183: =M151 -> 12 | C183: 15.03804072 | D183: 20.4 | E183: 0.008013867005 | F183: 0.00324 | G183: 8.10757605
B184: =M152 -> 13 | C184: 15.02311684 | D184: 20.1 | E184: 0.00486992106 | F184: 0.00306 | G184: 8.118829917
B185: =M153 -> 14 | C185: 15.0140478 | D185: 19.7 | E185: 0.002959386663 | F185: 0.00282 | G185: 8.126759838
B186: =M154 -> 15 | C186: 15.00853666 | D186: 19.3 | E186: 0.001798380161 | F186: 0.00258 | G186: 8.132539225
B187: =M155 -> 16 | C187: 15.00518762 | D187: 19.1 | E187: 0.001092851855 | F187: 0.00246 | G187: 8.136917605
B188: =M156 -> 17 | C188: 15.00315245 | D188: 18.8 | E188: 0.000664111628 | F188: 0.00228 | G188: 8.140470457 | K188: Titles for the diagramm
B189: =M157 -> 18 | C189: 15.0019157 | D189: 18.6 | E189: 0.0004035718588 | F189: 0.00216 | G189: 8.143414569 | K189: =Translation!B116 -> Time in h
B190: =M158 -> 19 | C190: 15.00116415 | D190: 19.5 | E190: 0.0002452452846 | F190: 0.0027 | G190: 8.14597814 | K190: =Translation!B118 -> Accumulated Cooling load in kWh
B191: =M159 -> 20 | C191: 15.00070744 | D191: 21 | E191: 0.0001490323181 | F191: 0.0036 | G191: 8.148923386 | K191: =Translation!B119 -> Cooling load
B192: =M160 -> 21 | C192: 15.0004299 | D192: 22.5 | E192: 9.056496994e-05 | F192: 0.0045 | G192: 8.152672418
B193: =M161 -> 22 | C193: 15.00026124 | D193: 24 | E193: 5.503513524e-05 | F193: 0.0054 | G193: 8.157262983
B194: =M162 -> 23 | C194: 15.00015875 | D194: 25.3 | E194: 3.344412429e-05 | F194: 0.00618 | G194: 8.162718018
B195: =M163 -> 24 | C195: 15.00009647 | D195: 26.6 | F195: 0.00696 | G195: 8.168931462
B229: 5.17 | C229: 6.01 | D229: 6.19 | E229: 6.28 | F229: 6.02 | G229: 5.57 | H229: 5.14 | I229: 4.97 | J229: 5.3 | K229: 5.56 | L229: 5.53 | M229: 5.26
B232: 5.17 | C232: 6.01 | D232: 6.19 | E232: 6.28 | F232: 6.02 | G232: 5.57 | H232: 5.14 | I232: 4.97 | J232: 5.3 | K232: 5.56 | L232: 5.53 | M232: 5.26

Sheet Translation (hidden)
B2: Selected language: | C2: ='READ ME'!E4 -> English
B3: Number: | C3: =MATCH(C2,E5:H5,0) -> 1
E4: 1 | F4: 2 | G4: 3 | H4: 4
B5: Appearence in the tool | E5: English | F5: Français | G5: Español | H5: Deutsch
B6: =INDEX(E6:H6,$C$3) -> Design Tool: Solar Water Chiller for Cold Rooms | C6: Read me | E6: Design Tool: Solar Water Chiller for Cold Rooms | F6: Outil de conception: Refroidisseur solaire d'eau pour chambres froides
B7: =INDEX(E7:H7,$C$3) -> Read Me Sheet | E7: Read Me Sheet | F7: Lisez-moi
B8: Introduction | E8: Introduction | F8: Introduction
B9: =INDEX(E9:H9,$C$3) -> This tool calculates the required power of a do-it-yourself water chiller for cold rooms to cool different products from a given to a desired temperature and gives an economic analysis. Examplary data is filled and and can be modified by own data. | E9: This tool calculates the required power of a do-it-yourself water chiller for cold rooms to cool different products from a given to a desired temperature and gives an economic analysis. Examplary data is filled and and can be modified by own data. | F9: Cet outil calcule la puissance requise d'un refroidisseur d'eau pour chambres froides de bricolage pour refroidir différents produits d'une température donnée à une température souhaitée et fournit une analyse économique. Des données d'exemple sont remplies et peuvent être modifiées par vos propres données.
B10: Tips & Tricks | E10: Tips & Tricks | F10: Conseils et astuces
B11: ● Enter values into white (non-coloured) cells only! ● None entry cells (coloured cells) are protected. Unprotect first if changes are necessary | E11: ● Enter values into white (non-coloured) cells only! ● None entry cells (coloured cells) are protected. Unprotect first if changes are necessary | F11: ● Saisissez des valeurs uniquement dans les cellules blanches (non colorées)! ● Les cellules qui ne doivent pas être remplies(cellules de couleur) sont protégées.
B12: Overview of the following sheets | E12: Overview of the following sheets | F12: Aperçu des feuilles
B13: 1. Geographic Data | E13: 1. Geographic Data | F13: 1. Geographic Data | G13: 1. Geographic Data | H13: 1. Geographic Data
B14: 2. Input | E14: 2. Input | F14: 2. Input | G14: 2. Input | H14: 2. Input
B15: 3. Cooling Curve | E15: 3. Cooling Curve | F15: 3. Cooling Curve | G15: 3. Cooling Curve | H15: 3. Cooling Curve
B16: 4. Output | E16: 4. Output | F16: 4. Output | G16: 4. Output | H16: 4. Output
B17: 5. Weather Data | E17: 5. Weather Data | F17: 5. Weather Data | G17: 5. Weather Data | H17: 5. Weather Data
B18: Calculation Sheet (Hidden) | E18: Calculation Sheet (Hidden) | F18: Feuille de calcul (caché)
B19: Translation sheet (Hidden) | E19: Translation sheet (Hidden) | F19: Feuille de traduction (caché)
B20: For selecting basic site information: ambient temperatures or solar radiation. | E20: For selecting basic site information: ambient temperatures or solar radiation. | F20: Pour choisir des informations de base sur le site: températures ambiantes ou rayonnement solaire. | G20: Selection de datos climaticos: Temperatura ambiente y radiación solar
B21: For adding data about the product to be cooled under given conditions | E21: For adding data about the product to be cooled under given conditions | F21: Pour ajouter des données sur le produit à refroidir dans des conditions données
B22: Visualization of the Cooling Curve and Cooling Load profile | E22: Visualization of the Cooling Curve and Cooling Load profile | F22: Visualisation de la courbe de refroidissement et du profil de charge de refroidissement
B23: For an overview of the results | E23: For an overview of the results | F23: Pour un aperçu des résultats
B24: To add weather data for a specific location | E24: To add weather data for a specific location | F24: Pour ajouter des données météorologiques pour un endroit spécifique | G24: Para añadir datos meteorológicos para una ubicación específica
B25: All calculations are done within this sheet | E25: All calculations are done within this sheet | F25: Tous les calculs sont effectués dans cette feuille
B26: Contains the translation into several languages | E26: Contains the translation into several languages | F26: Contient la traduction en plusieurs langues
B27: Additional information | E27: Additional information | F27: Informatios supplémentaires
B28: This tool was created by the solar cooling group of the Institute of Agricultural Engineering ( Tropics/Subtropics Department) of the University of Hohenheim, Germany. | E28: This tool was created by the solar cooling group of the Institute of Agricultural Engineering ( Tropics/Subtropics Department) of the University of Hohenheim, Germany. | F28: Cet outil a été créé par le groupe de refroidissement solaire de l’Institut d'Ingénierie Agricole (Département tropiques / subtropiques) de l’Université de Hohenheim, en Allemagne.
B29: In cooperation with | E29: In cooperation with | F29: En coopération avec
B30: 1. Geographic Data | C30: 1 Geographic Data | E30: 1. Geographic Data | F30: 1. Données géographiques
B31: Mean daily temperature [°C]: | E31: Mean daily temperature [°C]: | F31: Temperature quotidienne moyenne [°C]
B32: Solar irradiation [kWh/m² day]: | E32: Solar irradiation [kWh/m² day]: | F32: Irradiation solaire [kWh/m² jour]
B33: January | E33: January | F33: Janvier
B34: February | E34: February | F34: Février
B35: March | E35: March | F35: Mars
B36: April | E36: April | F36: Avril
B37: May | E37: May | F37: Mai
B38: June | E38: June | F38: Juin
B39: July | E39: July | F39: Juillet
B40: August | E40: August | F40: Août
B41: September | E41: September | F41: Septembre
B42: October | E42: October | F42: Octobre
B43: November | E43: November | F43: Novembre
B44: December | E44: December | F44: Décembre
B45: Locations can be added on the sheet "Weather Data" | E45: Locations can be added on the sheet "Weather Data" | F45: Des localisations peuvent être ajoutées sur la feuille "Weather Data" | G45: Las ubicaciones pueden ser añadidas en la hoja "Weather Data".
B46: Choose location: | E46: Choose location: | F46: Selectionner localisation: | G46: Selectionar ubicación:
B47: Use to obtain indicative monthly irradiation and temperature data for the site: | E47: Use to obtain indicative monthly irradiation and temperature data for the site: | F47: À utiliser pour obtenir des données indicatives mensuelles sur l’irradiation et la température du site:
B48: Input of parameters | C48: 2 Input | E48: Input of parameters | F48: Entrée de paramètres
B49: Product information | E49: Product information | F49: Information du produit
B50: Data | E50: Data | F50: Données
B51: Total mass to be cooled | E51: Total mass to be cooled | F51: Masse totale à refroidir
B52: Moisture content of the product | E52: Moisture content of the product | F52: Teneur en humidité du produit
B53: or Heat capacity of the product | E53: or Heat capacity of the product | F53: ou capacité thermique du produit
B54: Mass = | E54: Mass = | F54: Masse =
B55: MC = | E55: MC = | F55: MC =
B56: cp = | E56: cp = | F56: cp =
B57: kg or l | E57: kg or l | F57: kg ou l
B58: % wet based | E58: % wet based | F58: % à base humide
B59: kJ/kg K | E59: kJ/kg K | F59: kJ/kg K
B60: Radius | E60: Radius | F60: Rayon
B61: Density | E61: Density | F61: Densité
B62: Convection air - product | E62: Convection air - product | F62: Convection air - produit
B63: Conduction coefficient of the product | E63: Conduction coefficient of the product | F63: Coefficient de conduction du porduit
B64: Temperature information | E64: Temperature information | F64: Information des températures
B65: Initial temperature of the product | E65: Initial temperature of the product | F65: Température initiale du produit
B66: Final temperature of the product | E66: Final temperature of the product | F66: Température finale du produit
B67: Time to cool down the product | E67: Time to cool down the product | F67: Temps pour refroidir le produit
B68: How often do you cool down the product | E68: How often do you cool down the product | F68: À quelle fréquence refroidissez-vous le produit?
B69: per month | E69: per month | F69: par mois
B70: System information | E70: System information | F70: Informations du système
B71: Batteries | E71: Batteries | F71: Batteries
B72: Autonomy of the system | E72: Autonomy of the system | F72: Autonomie du système
B73: System losses | E73: System losses | F73: Pertes du système
B74: PV Panels | E74: PV Panels | F74: Panneau solaires
B75: Charge Controller | E75: Charge Controller | F75: Contrôleur de charge
B76: Batteries | E76: Batteries | F76: Batteries
B77: Control Unit | E77: Control Unit | F77: Unité de control
B78: Compressor | E78: Compressor | F78: Compressseur
B79: Ice storage | E79: Ice storage | F79: Stockage de glace
B80: Water bath | E80: Water bath | F80: Bain d'eau
B81: Ice on evaporator surface | E81: Ice on evaporator surface | F81: Glace surface de l'évaporateur
B82: DC pump | E82: DC pump | F82: Pompe CC
B83: Fan coil unit | E83: Fan coil unit | F83: Ventilo-convecteur
B84: Cold room | E84: Cold room | F84: Chambre froide
B85: Cooled product | E85: Cooled product | F85: Produit refroidi
B86: Yes | E86: Yes | F86: Oui
B87: No | E87: No | F87: Non
B88: Cold Room | E88: Cold Room | F88: Chambre froide
B89: Inner length of the cold room | E89: Inner length of the cold room | F89: Longueur intérieur de la chambre froide
B90: Inner width of the cold room | E90: Inner width of the cold room | F90: Largeur intérieur de la chambre froide
B91: Inner height of the cold room | E91: Inner height of the cold room | F91: Hauteur intérieur de la chambre froide
B92: Area of the cold room | E92: Area of the cold room | F92: Surface du réfrigérateur
B93: Thermal conductivity of insulation | E93: Thermal conductivity of insulation | F93: Conductivité thermique de l'isolation
B94: Thickness of insulation | E94: Thickness of insulation | F94: Épaisseur de l'isolation
B95: Ice storage inside the cold room? | E95: Ice storage inside the cold room? | F95: Stockage de glace dans la chambre froide?
B96: Economic information | E96: Economic information | F96: Informations économiques
B97: =INDEX(E97:H97,$C$3) -> Currency used for calculation | E97: Currency used for calculation | F97: Devise utilisée pour le calcul
B98: Specific cost of PV | E98: Specific cost of PV | F98: Coût spécifique du PV
B99: PV lifetime | E99: PV lifetime | F99: PV durée de vie
B100: Specif cost of battery | E100: Specif cost of battery | F100: Coût spécifique de la batterie
B101: Battery lifetime | E101: Battery lifetime | F101: Durée de vie de la batterie
B102: Cost of solar cooling unit | E102: Cost of solar cooling unit | F102: Coût de l'unité de refroidissement solaire
B103: Solar cooling unit lifetime | E103: Solar cooling unit lifetime | F103: Durée de vie de l'unité de refroidissement solaire
B104: Material & construction costs for cooling box | E104: Material & construction costs for cooling box | F104: Coûts de matériel et de construction pour la glacière
B105: Maintenance costs per year | E105: Maintenance costs per year | F105: Coûts de maintenance par an
B106: years | E106: years | F106: années
B107: Additional income per product unit | E107: Additional income per product unit | F107: Revenu supplémentaire par unité de produit
B108: Additional income per month | E108: Additional income per month | F108: Revenu supplémentaire par mois
B109: Discount rate | E109: Discount rate | F109: Taux de remise
B110: Inflation | E110: Inflation | F110: Inflation
B111: €/kg or l | E111: ='2 Input'!G45&"/kg or l" -> €/kg or l | F111: ='2 Input'!G45&"/kg ou l" -> €/kg ou l
B112: €/Wp | E112: ='2 Input'!G45&"/Wp" -> €/Wp | F112: ='2 Input'!G45&"/Wc" -> €/Wc
B113: €/month | E113: ='2 Input'!G45&"/month" -> €/month | F113: ='2 Input'!G45&"/mois" -> €/mois
B114: Cooling Curve | C114: 3 Cooling Curve | E114: Cooling Curve | F114: Courbe de refroidissement
B115: Temperature in °C | E115: Temperature in °C | F115: Température en °C
B116: Time in h | E116: Time in h | F116: Temps en h
B117: Temperature of the product | E117: Temperature of the product | F117: Température du produit
B118: Accumulated Cooling load in kWh | E118: Accumulated Cooling load in kWh | F118: Charge de refroidissement accumulée en kWh
B119: Cooling load | E119: Cooling load | F119: Charge de refroidissement
B120: Thermal losses cold month in kWh | E120: Thermal losses cold month in kWh | F120: Pertes thermiques mois froid en kWh
B121: Thermal losses hot month in kWh | E121: Thermal losses hot month in kWh | F121: Pertes thermiques mois chaud en kWh
B122: Cooling Curve & Cooling Load | E122: Cooling Curve & Cooling Load | F122: Courbe de refroidissement et charge de refroidissement
B123: 0
B124: Results | C124: 4 Output | E124: Results | F124: Résultats
B125: System Design without batteries | E125: System Design without batteries | F125: Conception du système sans batteries
B126: Cooling units needed: | E126: Cooling units needed: | F126: Unités de refroidissement nécessaires:
B127: Cooling units costs: | E127: Cooling units costs: | F127: Coûts des unités de refroidissement:
B128: Solar PV size: | E128: Solar PV size: | F128: Taille PV solaire:
B129: Solar PV costs: | E129: Solar PV costs: | F129: Coûts PV solaire:
B130: Battery size: | E130: Battery size: | F130: Taille des batteries:
B131: Battery costs: | E131: Battery costs: | F131: Coûts des batteries:
B132: Total initial investment: | E132: Total initial investment: | F132: Investissement initial total:
B133: Payback period: | E133: Payback period: | F133: Période de récupération:
B134: Net present value: | E134: Net present value: | F134: Valeur actuelle nette:
B135: Internal rate of return: | E135: Internal rate of return: | F135: Taux de rendement interne:
B136: System Design with batteries | E136: System Design with batteries | F136: Conception du système avec batteries
B137: years | E137: years | F137: années
B138: Accumulated income & system costs over 20 years | E138: Accumulated income & system costs over 20 years | F138: Revenu accumulé et coûts du système sur 20 ans
B139: Years | E139: Years | F139: Années
B140: Accumulated income | E140: Accumulated income | F140: Revenu accumulé
B141: Accumulated system costs without batteries | E141: Accumulated system costs without batteries | F141: Coûts accumulé du système sans batteries
B142: Accumulated system costs with batteries | E142: Accumulated system costs with batteries | F142: Coûts accumulé du système avec batteries

Sheet 5 Weather Data
B5: ="Selection: "&S13 -> Selection: Mali (Bamako) | C5: =Translation!B33 -> January | D5: =Translation!B34 -> February | E5: =Translation!B35 -> March | F5: =Translation!B36 -> April | G5: =Translation!B37 -> May | H5: =Translation!B38 -> June | I5: =Translation!B39 -> July | J5: =Translation!B40 -> August | K5: =Translation!B41 -> September | L5: =Translation!B42 -> October | M5: =Translation!B43 -> November | N5: =Translation!B44 -> December
B6: =Translation!B31 -> Mean daily temperature [°C]: | C6: =INDEX(C14:C51,MATCH($S$13,$B$14:$B$50,0)+1) -> 25.1 | D6: =INDEX(D14:D51,MATCH($S$13,$B$14:$B$50,0)+1) -> 27.8 | E6: 30.3 | F6: 31.1 | G6: 31.5 | H6: 29 | I6: 27.4 | J6: 25.9 | K6: 26.4 | L6: 27.4 | M6: 26.5 | N6: 24.8
B7: =Translation!B32 -> Solar irradiation [kWh/m² day]: | C7: =INDEX(C14:C52,MATCH($S$13,$B$14:$B$50,0)+2) -> 5.4 | D7: =INDEX(D14:D52,MATCH($S$13,$B$14:$B$50,0)+2) -> 5.9 | E7: 6.9 | F7: 6.6 | G7: 6.4 | H7: 6.1 | I7: 5.8 | J7: 5.6 | K7: 5.8 | L7: 5.8 | M7: 5.7 | N7: 5.4
Q13: Selection: | S13: ='1 Geographic Data'!A6 -> Mali (Bamako)
B14: Kenya (Kisumu) | C14: =C5 -> January | D14: February | E14: March | F14: April | G14: May | H14: June | I14: July | J14: August | K14: September | L14: October | M14: November | N14: December | Q14: List of locations:
B15: =B6 -> Mean daily temperature [°C]: | C15: 25 | D15: 26 | E15: 26 | F15: 26 | G15: 25 | H15: 23 | I15: 22 | J15: 23 | K15: 24 | L15: 25 | M15: 25 | N15: 25 | S15: =B14 -> Kenya (Kisumu)
B16: Solar irradiation [kWh/m² day]: | C16: 6.2 | D16: 6.6 | E16: 6 | F16: 5.3 | G16: 4.6 | H16: 4.3 | I16: 4.4 | J16: 4.7 | K16: 5.6 | L16: 5.9 | M16: 5.6 | N16: 5.8 | S16: =B18 -> Mali (Bamako)
S17: =B22 -> Benin (Porto Novo)
B18: Mali (Bamako) | C18: =C14 -> January | D18: February | E18: March | F18: April | G18: May | H18: June | I18: July | J18: August | K18: September | L18: October | M18: November | N18: December | S18: =B26 -> +++ Add location +++
B19: =B15 -> Mean daily temperature [°C]: | C19: 25.1 | D19: 27.8 | E19: 30.3 | F19: 31.1 | G19: 31.5 | H19: 29 | I19: 27.4 | J19: 25.9 | K19: 26.4 | L19: 27.4 | M19: 26.5 | N19: 24.8 | S19: =B30 -> +++ Add location +++
B20: Solar irradiation [kWh/m² day]: | C20: 5.4 | D20: 5.9 | E20: 6.9 | F20: 6.6 | G20: 6.4 | H20: 6.1 | I20: 5.8 | J20: 5.6 | K20: 5.8 | L20: 5.8 | M20: 5.7 | N20: 5.4 | S20: =B34 -> +++ Add location +++
S21: =B38 -> +++ Add location +++
B22: Benin (Porto Novo) | C22: =C14 -> January | D22: February | E22: March | F22: April | G22: May | H22: June | I22: July | J22: August | K22: September | L22: October | M22: November | N22: December | S22: =B42 -> +++ Add location +++
B23: =B15 -> Mean daily temperature [°C]: | C23: 28 | D23: 29 | E23: 29.5 | F23: 29 | G23: 28 | H23: 27 | I23: 26 | J23: 26 | K23: 26.5 | L23: 27 | M23: 28 | N23: 28.5 | S23: =B46 -> +++ Add location +++
B24: Solar irradiation [kWh/m² day]: | C24: 5.929032258 | D24: 5.928571429 | E24: 5.709677419 | F24: 5.8 | G24: 5.083870968 | H24: 4.016666667 | I24: 4.135483871 | J24: 4.429032258 | K24: 4.406666667 | L24: 4.532258065 | M24: 5.256666667 | N24: 5.706451613 | S24: =B50 -> +++ Add location +++
B26: +++ Add location +++ | C26: =C14 -> January | D26: February | E26: March | F26: April | G26: May | H26: June | I26: July | J26: August | K26: September | L26: October | M26: November | N26: December
B27: =B15 -> Mean daily temperature [°C]:
B28: Solar irradiation [kWh/m² day]:
B30: +++ Add location +++ | C30: =C14 -> January | D30: February | E30: March | F30: April | G30: May | H30: June | I30: July | J30: August | K30: September | L30: October | M30: November | N30: December
B31: =B15 -> Mean daily temperature [°C]:
B32: Solar irradiation [kWh/m² day]:
B34: +++ Add location +++ | C34: =C14 -> January | D34: February | E34: March | F34: April | G34: May | H34: June | I34: July | J34: August | K34: September | L34: October | M34: November | N34: December
B35: =B15 -> Mean daily temperature [°C]:
B36: Solar irradiation [kWh/m² day]:
B38: +++ Add location +++ | C38: =C14 -> January | D38: February | E38: March | F38: April | G38: May | H38: June | I38: July | J38: August | K38: September | L38: October | M38: November | N38: December
B39: =B15 -> Mean daily temperature [°C]:
B40: Solar irradiation [kWh/m² day]:
B42: +++ Add location +++ | C42: =C14 -> January | D42: February | E42: March | F42: April | G42: May | H42: June | I42: July | J42: August | K42: September | L42: October | M42: November | N42: December
B43: =B15 -> Mean daily temperature [°C]:
B44: Solar irradiation [kWh/m² day]:
B46: +++ Add location +++ | C46: =C14 -> January | D46: February | E46: March | F46: April | G46: May | H46: June | I46: July | J46: August | K46: September | L46: October | M46: November | N46: December
B47: =B15 -> Mean daily temperature [°C]:
B48: Solar irradiation [kWh/m² day]:
B50: +++ Add location +++ | C50: =C14 -> January | D50: February | E50: March | F50: April | G50: May | H50: June | I50: July | J50: August | K50: September | L50: October | M50: November | N50: December
B51: =B15 -> Mean daily temperature [°C]:
B52: Solar irradiation [kWh/m² day]:
